bitfinex/quotes_SOLUSD_20230702
["timestamp","ask_amount","ask_price","bid_price","bid_amount"]
[1688309859537,20.0,19.148,19.138,22.102]
[1688309860830,20.0,19.149,19.138,22.102]
[1688309861026,20.0,19.149,19.138,20.602]
[1688309865937,20.0,19.149,19.14,13.02]
[1688309866243,20.0,19.149,19.142,22.097]
[1688309866744,20.0,19.149,19.141,22.099]
[1688309866947,20.0,19.149,19.14,13.02]
[1688309869845,20.0,19.149,19.14,35.12]
[1688309870147,20.0,19.149,19.141,55.0]
[1688309870363,20.0,19.149,19.143,22.096]
[1688309871030,20.0,19.149,19.142,22.097]
[1688309871230,20.0,19.149,19.141,55.0]
[1688309872046,20.0,19.149,19.141,77.099]
[1688309873346,20.0,19.149,19.141,55.0]
[1688309873551,20.0,19.149,19.141,77.098]
[1688309877234,135.0,19.15,19.141,77.098]
[1688309877428,135.0,19.15,19.141,237.799]
[1688309877746,10.0,19.15,19.141,237.799]
[1688309877951,25.65662506,19.163,19.141,237.799]
[1688309878243,72.4327,19.168,19.15,13.02]
[1688309878446,27.287937,19.165,19.151,55.0]
[1688309878949,27.287937,19.165,19.151,77.087]
[1688309879345,20.0,19.164,19.151,77.087]
[1688309880647,15.0,19.164,19.151,77.087]
[1688309884238,15.0,19.164,19.151,22.087]
[1688309884442,55.0,19.163,19.151,22.087]
[1688309884654,20.0,19.162,19.151,22.087]
[1688309885434,20.0,19.164,19.152,55.0]
[1688309885746,13.02,19.17,19.153,22.085]
[1688309886046,13.02,19.17,19.157,22.08]
[1688309887147,75.0,19.169,19.157,22.08]
[1688309895845,20.0,19.169,19.157,22.08]
[1688309896052,55.0,19.168,19.157,22.08]
[1688309896361,20.0,19.167,19.156,22.081]
[1688309896544,55.0,19.166,19.156,22.081]
[1688309896742,20.0,19.165,19.156,22.081]
[1688309899059,55.0,19.164,19.152,22.085]
[1688309899261,12.98,19.16,19.146,10.83719922]
[1688309899455,20.0,19.159,19.14,13.02]
[1688309899649,75.0,19.159,19.142,22.096]
[1688309899963,83.69398665,19.159,19.142,22.096]
[1688309900438,105.78998665,19.159,19.142,22.096]
[1688309902750,105.78998665,19.159,19.142,32.93319922]
[1688309903258,97.096,19.159,19.142,32.93319922]
[1688309906062,97.096,19.159,19.143,10.83719922]
[1688309906265,97.096,19.159,19.147,22.091]
[1688309906465,122.84708361,19.159,19.147,22.091]
[1688309909159,67.84708361,19.159,19.147,22.091]
[1688309909463,45.75108361,19.159,19.147,22.091]
[1688309911866,55.0,19.158,19.147,22.091]
[1688309912165,20.0,19.157,19.147,22.091]
[1688309913566,55.0,19.156,19.147,22.091]
[1688309913765,20.0,19.155,19.147,22.091]
[1688309914068,55.0,19.154,19.141,90.038]
[1688309914769,55.0,19.154,19.141,22.098]
[1688309914964,55.0,19.154,19.14,17.099]
[1688309914965,13.02,19.15,19.14,17.099]
[1688309915269,75.0,19.149,19.14,17.099]
[1688309916153,20.0,19.149,19.14,17.099]
[1688309918173,20.0,19.158,19.14,17.099]
[1688309918473,20.914434,19.153,19.14,17.099]
[1688309918670,75.0,19.152,19.14,17.099]
[1688309919260,75.0,19.152,19.14,22.1]
[1688309919877,20.0,19.151,19.14,35.12]
[1688309920259,20.0,19.152,19.14,35.12]
[1688309920562,20.0,19.156,19.14,35.12]
[1688309920762,20.0,19.156,19.141,55.0]
[1688309920974,20.0,19.159,19.144,22.095]
[1688309921172,55.0,19.158,19.144,22.095]
[1688309921480,20.0,19.157,19.144,22.095]
[1688309921773,55.0,19.156,19.144,22.095]
[1688309921970,20.0,19.155,19.144,22.095]
[1688309923561,55.0,19.154,19.144,22.095]
[1688309924164,20.0,19.155,19.144,22.095]
[1688309924373,20.0,19.158,19.144,22.095]
[1688309924677,55.0,19.157,19.144,22.095]
[1688309924865,20.0,19.156,19.144,22.095]
[1688309925066,55.0,19.155,19.144,22.095]
[1688309925375,20.0,19.154,19.144,22.095]
[1688309927368,20.0,19.154,19.138,22.101]
[1688309927369,22.086,19.152,19.138,22.101]
[1688309927679,215.608,19.153,19.138,22.101]
[1688309927680,20.0,19.151,19.138,22.101]
[1688309927872,55.0,19.15,19.138,22.101]
[1688309928075,20.0,19.149,19.138,22.101]
[1688309928257,55.0,19.148,19.138,22.101]
[1688309928463,20.0,19.147,19.138,22.101]
[1688309928862,20.0,19.149,19.138,22.101]
[1688309929568,20.0,19.157,19.138,22.101]
[1688309929770,55.0,19.154,19.138,22.101]
[1688309929971,20.0,19.153,19.138,22.101]
[1688309930172,55.0,19.152,19.138,22.101]
[1688309930374,20.0,19.151,19.138,22.101]
[1688309931973,55.0,19.15,19.137,22.103]
[1688309932175,20.0,19.149,19.137,22.103]
[1688309932476,55.0,19.148,19.137,22.103]
[1688309932781,20.0,19.147,19.137,22.103]
[1688309933277,20.0,19.153,19.137,22.103]
[1688309933487,55.0,19.152,19.137,22.103]
[1688309933783,20.0,19.151,19.137,22.103]
[1688309933984,55.0,19.15,19.137,22.103]
[1688309934184,20.0,19.149,19.137,22.103]
[1688309934483,55.0,19.148,19.137,22.103]
[1688309934686,20.0,19.147,19.137,22.103]
[1688309935474,55.0,19.146,19.137,22.103]
[1688309935760,20.0,19.145,19.137,22.103]
[1688309935965,55.0,19.144,19.137,22.103]
[1688309936561,20.0,19.145,19.137,22.103]
[1688309936780,55.0,19.151,19.137,22.103]
[1688309936965,75.0,19.15,19.137,22.103]
[1688309939085,20.0,19.15,19.137,22.103]
[1688309939487,20.0,19.155,19.137,22.103]
[1688309939785,104.582786,19.154,19.137,22.103]
[1688309939988,20.0,19.153,19.137,22.103]
[1688309940187,20.0,19.153,19.133,154.0927]
[1688309940379,55.0,19.152,19.136,22.104]
[1688309940887,20.0,19.151,19.136,22.104]
[1688309941100,55.0,19.15,19.135,22.105]
[1688309941278,20.0,19.149,19.135,22.105]
[1688309941481,55.0,19.148,19.135,22.105]
[1688309941786,20.0,19.147,19.135,22.105]
[1688309941983,55.0,19.146,19.135,22.105]
[1688309942195,20.0,19.145,19.135,22.105]
[1688309942490,55.0,19.144,19.135,22.105]
[1688309945191,20.0,19.145,19.135,22.105]
[1688309945383,20.0,19.15,19.135,22.105]
[1688309945585,55.0,19.149,19.135,22.105]
[1688309945784,20.0,19.148,19.135,22.105]
[1688309946098,55.0,19.147,19.135,22.105]
[1688309946279,20.0,19.146,19.135,22.105]
[1688309947686,20.0,19.146,19.135,21.105]
[1688309948591,55.0,19.145,19.135,21.105]
[1688309948781,20.0,19.144,19.135,21.105]
[1688309949182,20.0,19.144,19.133,22.107]
[1688309949494,55.0,19.143,19.133,22.107]
[1688309949695,20.0,19.144,19.133,22.107]
[1688309949880,20.0,19.148,19.133,22.107]
[1688309950081,55.0,19.147,19.133,22.107]
[1688309950281,20.0,19.146,19.133,22.107]
[1688309950492,55.0,19.151,19.134,55.0]
[1688309950688,96.0761,19.155,19.14,22.099]
[1688309950880,20.0,19.154,19.14,22.099]
[1688309951079,20.0,19.155,19.14,22.099]
[1688309951295,20.0,19.156,19.14,22.099]
[1688309951679,40.91513,19.156,19.14,22.099]
[1688309952198,40.91513,19.156,19.14,34.999]
[1688309952380,40.91513,19.156,19.145,22.093]
[1688309953289,22.087,19.151,19.143,22.095]
[1688309953495,20.0,19.15,19.143,22.095]
[1688309953684,22.091,19.148,19.141,22.098]
[1688309953885,22.091,19.148,19.14,22.1]
[1688309953886,20.0,19.147,19.14,22.1]
[1688309954397,20.0,19.151,19.14,22.1]
[1688309958398,20.0,19.155,19.14,22.1]
[1688309958599,20.0,19.155,19.141,55.0]
[1688309958800,20.0,19.155,19.143,22.096]
[1688309959497,55.0,19.154,19.143,22.096]
[1688309959698,20.0,19.153,19.143,22.096]
[1688309961199,20.0,19.155,19.143,22.096]
[1688309963101,55.0,19.154,19.141,22.098]
[1688309963403,20.0,19.153,19.141,22.098]
[1688309966788,55.0,19.152,19.138,22.101]
[1688309966984,20.0,19.151,19.137,22.103]
[1688309967188,20.0,19.151,19.138,55.0]
[1688309967999,20.0,19.151,19.137,22.103]
[1688309968000,55.0,19.15,19.137,22.103]
[1688309968200,20.0,19.149,19.135,22.105]
[1688309968504,55.0,19.148,19.135,22.105]
[1688309968900,20.0,19.147,19.135,22.105]
[1688309969100,55.0,19.146,19.135,22.105]
[1688309969310,20.0,19.145,19.135,22.105]
[1688309969986,20.0,19.154,19.135,22.105]
[1688309970190,55.0,19.153,19.135,22.105]
[1688309970398,20.0,19.152,19.135,22.105]
[1688309970598,55.0,19.151,19.135,22.105]
[1688309970794,20.0,19.15,19.135,22.105]
[1688309970996,55.0,19.149,19.135,22.105]
[1688309971196,20.0,19.148,19.135,22.105]
[1688309971398,55.0,19.147,19.135,22.105]
[1688309971792,20.0,19.146,19.135,22.105]
[1688309972398,20.0,19.152,19.135,22.105]
[1688309973403,55.0,19.151,19.135,22.105]
[1688309973597,20.0,19.15,19.135,22.105]
[1688309973897,55.0,19.149,19.135,22.105]
[1688309974308,20.0,19.148,19.135,22.105]
[1688309977607,55.0,19.147,19.133,32.94519922]
[1688309977784,20.0,19.146,19.127,22.114]
[1688309977992,55.0,19.145,19.127,22.114]
[1688309978294,20.0,19.144,19.127,22.114]
[1688309978602,55.0,19.143,19.127,22.114]
[1688309978807,20.0,19.142,19.127,22.114]
[1688309978990,55.0,19.141,19.127,22.114]
[1688309979192,20.0,19.14,19.127,22.114]
[1688309979401,55.0,19.139,19.127,22.114]
[1688309979597,20.0,19.138,19.127,22.114]
[1688309980698,20.0,19.144,19.127,22.114]
[1688309981003,55.0,19.143,19.127,22.114]
[1688309981388,20.0,19.142,19.126,22.116]
[1688309981593,55.0,19.141,19.126,22.116]
[1688309981808,20.0,19.14,19.126,22.116]
[1688309982111,55.0,19.139,19.126,22.116]
[1688309982294,20.0,19.138,19.126,22.116]
[1688309984303,20.0,19.138,19.123,112.9432]
[1688309984510,55.0,19.137,19.123,112.9432]
[1688309984809,20.0,19.136,19.123,112.9432]
[1688309985003,55.0,19.135,19.123,22.119]
[1688309985206,20.0,19.134,19.123,22.119]
[1688309985408,55.0,19.133,19.123,22.119]
[1688309985603,20.0,19.134,19.123,22.119]
[1688309985801,20.0,19.144,19.123,22.119]
[1688309986003,22.119,19.139,19.123,22.119]
[1688309986197,75.0,19.138,19.123,22.119]
[1688309986396,20.0,19.138,19.123,22.119]
[1688309986604,55.0,19.137,19.123,22.119]
[1688309986909,20.0,19.136,19.123,22.119]
[1688309987111,55.0,19.135,19.123,22.119]
[1688309987297,20.0,19.134,19.123,22.119]
[1688309990015,55.0,19.141,19.123,22.119]
[1688309990306,75.0,19.14,19.123,22.119]
[1688309990513,75.0,19.14,19.12,12.94]
[1688309990810,75.0,19.14,19.122,22.12]
[1688309991009,75.0,19.14,19.121,55.0]
[1688309991010,75.0,19.14,19.126,22.115]
[1688309999812,88.02,19.14,19.126,22.115]
[1688310000617,20.0,19.14,19.127,55.0]
[1688310000905,20.0,19.14,19.129,22.112]
[1688310001107,20.0,19.14,19.122,56.949]
[1688310001318,20.0,19.14,19.123,55.0]
[1688310001714,55.0,19.139,19.127,22.114]
[1688310001911,20.0,19.138,19.127,22.114]
[1688310002815,20.0,19.14,19.13,13.02]
[1688310002997,20.0,19.144,19.13,35.13]
[1688310004112,55.0,19.143,19.13,35.13]
[1688310004316,20.0,19.142,19.13,35.13]
[1688310004813,20.0,19.142,19.13,13.02]
[1688310004995,55.0,19.141,19.13,13.02]
[1688310005197,20.0,19.14,19.124,94.2548]
[1688310005501,55.0,19.139,19.124,94.2548]
[1688310005713,20.0,19.138,19.124,94.2548]
[1688310005902,55.0,19.137,19.124,94.2548]
[1688310006211,55.0,19.137,19.126,22.116]
[1688310006407,20.0,19.136,19.126,22.116]
[1688310006710,20.0,19.136,19.13,13.02]
[1688310006910,91.7937,19.145,19.131,22.11]
[1688310006911,20.0,19.144,19.131,22.11]
[1688310007819,20.0,19.144,19.13,35.131]
[1688310007994,55.0,19.143,19.13,35.131]
[1688310008199,20.0,19.142,19.13,35.131]
[1688310008903,20.0,19.144,19.13,35.131]
[1688310009120,20.0,19.148,19.131,55.0]
[1688310009421,20.0,19.148,19.133,22.107]
[1688310010002,55.0,19.148,19.134,55.0]
[1688310010303,105.3392,19.16,19.138,22.102]
[1688310010525,27.30175117,19.157,19.14,13.02]
[1688310010702,105.3392,19.16,19.142,22.097]
[1688310011022,27.30105769,19.157,19.137,22.102]
[1688310011217,22.102,19.157,19.138,55.0]
[1688310011514,20.0,19.156,19.137,22.102]
[1688310012307,55.0,19.155,19.137,22.102]
[1688310012499,13.02,19.15,19.133,22.107]
[1688310012706,75.0,19.149,19.133,22.107]
[1688310013517,170.8404,19.149,19.133,22.107]
[1688310014420,115.8404,19.149,19.133,22.107]
[1688310014616,115.8404,19.149,19.134,55.0]
[1688310014824,115.8404,19.149,19.137,22.102]
[1688310015005,20.0,19.149,19.137,22.102]
[1688310015206,20.0,19.156,19.137,22.102]
[1688310015405,115.8404,19.156,19.137,22.102]
[1688310016821,55.0,19.155,19.137,22.102]
[1688310017124,20.0,19.154,19.137,22.102]
[1688310017325,55.0,19.153,19.137,22.102]
[1688310017510,20.0,19.152,19.137,22.102]
[1688310017709,55.0,19.151,19.137,22.102]
[1688310018013,20.0,19.15,19.137,22.102]
[1688310018206,55.0,19.149,19.137,22.102]
[1688310018408,20.0,19.148,19.13,13.0]
[1688310018608,22.094,19.145,19.132,22.109]
[1688310018818,20.0,19.144,19.132,22.109]
[1688310019012,22.099,19.141,19.132,22.109]
[1688310019916,22.099,19.141,19.133,55.0]
[1688310020225,22.099,19.141,19.135,22.105]
[1688310022218,91.62027963,19.16,19.136,55.0]
[1688310022415,20.0,19.155,19.139,22.1]
[1688310022725,20.0,19.155,19.14,55.0]
[1688310023024,20.0,19.155,19.14,77.1]
[1688310023416,20.0,19.155,19.138,22.102]
[1688310023829,20.0,19.155,19.138,79.004]
[1688310024015,20.0,19.155,19.14,12.96]
[1688310024209,20.0,19.159,19.143,22.096]
[1688310024416,27.29723577,19.156,19.143,22.096]
[1688310024723,20.0,19.155,19.143,22.096]
[1688310024927,20.0,19.159,19.143,22.096]
[1688310025134,40.910989,19.159,19.143,22.096]
[1688310025319,55.0,19.158,19.143,22.096]
[1688310025527,20.0,19.157,19.143,22.096]
[1688310025716,55.0,19.156,19.143,22.096]
[1688310025912,20.0,19.155,19.143,22.096]
[1688310026413,20.0,19.158,19.144,55.0]
[1688310026613,55.0,19.157,19.143,22.096]
[1688310026814,20.0,19.156,19.143,22.096]
[1688310027024,20.0,19.156,19.144,55.0]
[1688310027223,20.0,19.156,19.144,77.095]
[1688310027420,27.29386548,19.163,19.144,77.095]
[1688310027619,13.1,19.17,19.15,12.9]
[1688310027826,35.34702116,19.174,19.155,22.082]
[1688310027827,27.28157002,19.169,19.155,22.082]
[1688310028216,35.347021,19.17,19.155,22.082]
[1688310028516,125.8080117,19.174,19.156,55.0]
[1688310028718,125.8080117,19.174,19.156,77.081]
[1688310028912,20.0,19.173,19.156,77.081]
[1688310029739,13.05,19.18,19.156,77.081]
[1688310030230,40.31987836,19.18,19.156,77.081]
[1688310030427,66.95497936,19.18,19.156,77.081]
[1688310031420,20.0,19.179,19.156,77.081]
[1688310031724,55.0,19.178,19.156,77.081]
[1688310032031,20.0,19.177,19.156,77.081]
[1688310032326,55.0,19.176,19.156,77.081]
[1688310032734,20.0,19.175,19.156,77.081]
[1688310032916,55.0,19.174,19.156,77.081]
[1688310033314,55.0,19.174,19.156,22.081]
[1688310033540,55.0,19.174,19.151,174.42008665]
[1688310033541,20.0,19.173,19.155,22.082]
[1688310033832,55.0,19.172,19.155,22.082]
[1688310034024,20.0,19.171,19.154,22.083]
[1688310034221,55.0,19.17,19.154,22.083]
[1688310034410,20.0,19.169,19.154,22.083]
[1688310035733,20.0,19.169,19.155,55.0]
[1688310036033,20.0,19.169,19.156,22.08]
[1688310036731,20.0,19.169,19.154,22.083]
[1688310037033,55.0,19.168,19.154,22.083]
[1688310037213,20.0,19.167,19.154,22.083]
[1688310037531,55.0,19.166,19.151,91.8744]
[1688310037734,20.0,19.165,19.151,113.9614]
[1688310038032,55.0,19.164,19.151,113.9614]
[1688310038532,55.0,19.164,19.151,22.087]
[1688310039722,55.0,19.164,19.144,152.0326]
[1688310039922,55.0,19.164,19.15,22.087]
[1688310040226,55.0,19.168,19.15,22.087]
[1688310040421,13.01,19.17,19.15,22.087]
[1688310040422,20.0,19.167,19.15,78.953]
[1688310040623,20.0,19.167,19.15,22.087]
[1688310040834,13.01,19.17,19.15,22.087]
[1688310041134,20.0,19.169,19.15,22.087]
[1688310041339,20.901533,19.167,19.15,22.087]
[1688310041538,20.0,19.166,19.15,22.087]
[1688310041746,55.0,19.165,19.15,22.087]
[1688310041937,20.0,19.164,19.15,22.087]
[1688310042136,55.0,19.163,19.15,22.087]
[1688310042323,20.0,19.162,19.151,55.0]
[1688310042524,20.0,19.164,19.154,22.083]
[1688310043131,20.0,19.169,19.154,22.083]
[1688310043725,20.0,19.169,19.155,55.0]
[1688310044038,20.0,19.171,19.158,22.078]
[1688310044441,20.0,19.172,19.158,22.078]
[1688310044938,20.0,19.175,19.158,22.078]
[1688310045443,27.273328,19.173,19.158,22.078]
[1688310045628,20.0,19.172,19.158,22.078]
[1688310045829,20.0,19.175,19.158,22.078]
[1688310046137,13.12,19.18,19.159,55.0]
[1688310046339,67.66308484,19.18,19.159,22.078]
[1688310046528,119.81308484,19.18,19.159,22.078]
[1688310047442,20.0,19.179,19.159,22.078]
[1688310047936,55.0,19.178,19.159,22.078]
[1688310048239,20.0,19.177,19.159,22.078]
[1688310048437,55.0,19.176,19.159,22.078]
[1688310048647,20.0,19.175,19.159,22.078]
[1688310048934,55.0,19.174,19.159,22.078]
[1688310049129,20.0,19.173,19.159,22.078]
[1688310050336,55.0,19.172,19.159,22.078]
[1688310050543,20.0,19.171,19.157,22.079]
[1688310050741,55.0,19.17,19.157,22.079]
[1688310050927,20.0,19.169,19.157,22.079]
[1688310051130,55.0,19.168,19.157,22.079]
[1688310051329,20.0,19.167,19.157,22.079]
[1688310052041,55.0,19.166,19.157,22.079]
[1688310052229,96.3011,19.172,19.157,22.079]
[1688310052230,55.0,19.171,19.157,22.079]
[1688310052430,75.0,19.17,19.157,22.079]
[1688310052740,75.0,19.17,19.152,94.4292]
[1688310052941,88.01,19.17,19.154,22.083]
[1688310053246,96.70398665,19.17,19.15,22.087]
[1688310053950,8.69398665,19.169,19.15,22.087]
[1688310054246,75.0,19.168,19.149,22.089]
[1688310054443,13.01,19.16,19.14,12.9]
[1688310054657,13.01,19.16,19.144,22.095]
[1688310054830,75.0,19.159,19.144,22.095]
[1688310055035,75.0,19.159,19.143,22.096]
[1688310055728,88.01,19.16,19.143,22.096]
[1688310055923,20.0,19.159,19.148,22.09]
[1688310056329,20.0,19.166,19.148,22.09]
[1688310057333,76.877,19.166,19.148,22.09]
[1688310057533,55.0,19.165,19.148,22.09]
[1688310057734,20.0,19.164,19.148,22.09]
[1688310057935,55.0,19.163,19.148,22.09]
[1688310058148,20.0,19.162,19.148,22.09]
[1688310058342,55.0,19.161,19.148,22.09]
[1688310058735,20.0,19.16,19.148,22.09]
[1688310058954,55.0,19.159,19.148,22.09]
[1688310059447,20.0,19.158,19.148,22.09]
[1688310060036,20.0,19.165,19.148,22.09]
[1688310060238,55.0,19.164,19.148,22.09]
[1688310060540,56.877,19.166,19.148,22.09]
[1688310060749,90.6534,19.169,19.154,22.084]
[1688310060938,20.0,19.168,19.154,22.084]
[1688310063657,55.0,19.167,19.154,22.084]
[1688310063841,20.0,19.166,19.154,22.084]
[1688310064041,55.0,19.165,19.154,22.084]
[1688310064245,20.0,19.164,19.154,22.084]
[1688310066154,20.0,19.168,19.154,22.084]
[1688310066360,55.0,19.167,19.154,22.084]
[1688310066564,20.0,19.166,19.154,22.084]
[1688310067755,20.0,19.168,19.154,22.084]
[1688310067960,55.0,19.167,19.154,22.084]
[1688310068146,20.0,19.166,19.154,22.084]
[1688310068345,20.0,19.168,19.154,22.084]
[1688310069062,20.0,19.168,19.155,55.0]
[1688310069357,20.0,19.175,19.158,22.078]
[1688310069555,84.13029154,19.172,19.158,22.078]
[1688310069757,75.0,19.171,19.158,22.078]
[1688310069951,20.0,19.171,19.158,22.078]
[1688310070154,20.0,19.171,19.159,55.0]
[1688310070349,20.0,19.175,19.162,22.074]
[1688310071150,20.0,19.179,19.163,55.0]
[1688310071358,20.0,19.182,19.167,78.884]
[1688310071868,48.15190585,19.183,19.171,22.063]
[1688310072046,27.26744985,19.183,19.171,22.063]
[1688310073162,20.0,19.182,19.171,22.063]
[1688310074366,56.816,19.185,19.171,22.063]
[1688310074573,26.02412035,19.193,19.172,55.0]
[1688310074865,97.3051,19.195,19.178,22.056]
[1688310075057,109.35196832,19.2,19.178,22.056]
[1688310075253,97.3051,19.199,19.178,22.056]
[1688310075463,97.3051,19.199,19.179,55.0]
[1688310075664,22.042,19.19,19.18,22.054]
[1688310075966,22.046,19.187,19.18,21.554]
[1688310076150,22.049,19.185,19.179,22.055]
[1688310076350,20.0,19.184,19.178,22.056]
[1688310076951,20.0,19.187,19.178,22.056]
[1688310077559,56.754,19.193,19.177,22.057]
[1688310077767,20.0,19.192,19.177,22.057]
[1688310077958,55.0,19.191,19.177,22.057]
[1688310078165,20.0,19.19,19.177,22.057]
[1688310078366,55.0,19.189,19.177,22.057]
[1688310078555,20.0,19.188,19.177,22.057]
[1688310079573,55.0,19.187,19.174,22.06]
[1688310079756,12.96,19.19,19.174,22.06]
[1688310079957,20.0,19.192,19.174,22.06]
[1688310080350,20.0,19.192,19.174,78.855]
[1688310080549,20.0,19.197,19.174,78.855]
[1688310080769,20.0,19.197,19.179,22.055]
[1688310081471,75.0,19.197,19.179,22.055]
[1688310082183,55.0,19.196,19.174,22.06]
[1688310082470,182.362,19.187,19.17,22.064]
[1688310082670,182.417,19.182,19.17,22.064]
[1688310082976,55.0,19.181,19.17,22.064]
[1688310083169,22.056,19.178,19.17,22.064]
[1688310083574,22.056,19.178,19.162,56.82]
[1688310083873,20.0,19.177,19.163,22.072]
[1688310084175,75.0,19.177,19.162,22.073]
[1688310084353,20.0,19.176,19.16,22.076]
[1688310084555,20.0,19.176,19.153,22.14868683]
[1688310084556,55.0,19.175,19.153,22.14868683]
[1688310084773,20.0,19.174,19.155,94.5516]
[1688310084964,55.0,19.173,19.157,22.079]
[1688310085472,20.0,19.172,19.157,22.08]
[1688310085661,55.0,19.171,19.157,22.08]
[1688310087752,20.0,19.17,19.157,22.08]
[1688310087964,55.0,19.169,19.157,22.08]
[1688310088169,20.0,19.168,19.157,22.08]
[1688310089274,20.0,19.168,19.155,22.082]
[1688310089455,55.0,19.167,19.155,22.082]
[1688310089755,20.0,19.166,19.155,22.082]
[1688310090362,20.0,19.175,19.154,119.4594]
[1688310090569,55.0,19.174,19.15,12.96]
[1688310090773,20.0,19.173,19.153,22.085]
[1688310091070,12.88,19.17,19.153,22.085]
[1688310091274,55.0,19.169,19.153,22.085]
[1688310091478,20.0,19.168,19.153,22.085]
[1688310091767,55.0,19.167,19.153,22.085]
[1688310091976,20.0,19.166,19.153,22.085]
[1688310092177,55.0,19.165,19.151,113.7463]
[1688310092361,20.0,19.164,19.151,113.7463]
[1688310092566,55.0,19.163,19.151,113.7463]
[1688310092764,20.0,19.162,19.151,113.7463]
[1688310094679,20.0,19.162,19.15,22.088]
[1688310094680,55.0,19.161,19.15,22.088]
[1688310095779,20.0,19.162,19.15,78.954]
[1688310095985,20.0,19.169,19.15,78.954]
[1688310096376,67.96,19.17,19.15,78.954]
[1688310096884,20.0,19.169,19.15,78.954]
[1688310097486,55.0,19.168,19.15,78.954]
[1688310097690,20.0,19.167,19.15,78.954]
[1688310097986,55.0,19.166,19.15,78.954]
[1688310098286,20.0,19.165,19.155,22.082]
[1688310098489,20.0,19.167,19.155,22.082]
[1688310098792,20.0,19.167,19.153,22.085]
[1688310099087,55.0,19.17,19.152,22.086]
[1688310099088,20.0,19.169,19.152,22.086]
[1688310099573,55.0,19.168,19.152,22.086]
[1688310099892,20.0,19.167,19.152,22.086]